bitfinex/quotes_ETHUSD_20260202
["timestamp","ask_amount","ask_price","bid_price","bid_amount"]
[1770056535943,1.9347588,2344.1,2343.2,0.01280628]
[1770056536145,12.8879562,2344.0,2342.8,0.0004]
[1770056536344,0.89785079,2343.9,2342.8,1.06747938]
[1770056536573,2.27643149,2343.8,2342.9,1.06704805]
[1770056536776,1.3785807,2343.8,2343.2,1.06691554]
[1770056536978,15.88926501,2344.1,2343.1,1.06696166]
[1770056537145,15.88926501,2344.1,2342.9,1.06703336]
[1770056537473,3.00128038,2344.1,2343.2,1.066878]
[1770056537672,1.06641641,2344.3,2343.2,1.066878]
[1770056537876,0.89822943,2344.2,2343.2,1.066878]
[1770056538079,1.06641641,2344.3,2343.1,4.26784684]
[1770056538279,0.89837072,2344.2,2343.1,4.26784684]
[1770056538478,4.2773493,2345.0,2343.1,4.26784684]
[1770056538479,1.06616358,2344.9,2343.5,11.71055211]
[1770056538659,0.89858297,2344.8,2343.7,11.71055211]
[1770056538854,13.95408636,2345.0,2343.7,11.71055211]
[1770056539067,0.89859734,2344.9,2343.7,11.71055211]
[1770056539272,0.89859734,2344.8,2343.7,11.71055211]
[1770056539470,13.95408636,2345.0,2343.8,1.2882888]
[1770056539668,0.89938378,2344.9,2343.8,1.2882888]
[1770056539873,0.89938378,2344.8,2343.8,1.2882888]
[1770056540070,13.95408636,2345.0,2343.8,1.2882888]
[1770056540274,12.91859981,2344.9,2343.9,1.0665984]
[1770056540479,5.39160447,2345.1,2343.9,1.0665984]
[1770056540480,0.89941599,2344.8,2343.9,1.0665984]
[1770056540682,0.0011,2345.5,2344.1,12.54364504]
[1770056540991,1.0669804,2345.5,2344.1,12.54364504]
[1770056541159,0.9000038,2345.4,2344.1,12.54364504]
[1770056541357,0.0011,2345.0,2344.0,0.895]
[1770056541561,12.02028382,2345.0,2344.0,0.895]
[1770056541983,0.0011,2345.0,2344.0,0.895]
[1770056542186,0.0011,2345.0,2344.1,1.0665074]
[1770056544183,0.0011,2345.0,2344.1,13.61015244]
[1770056544384,0.0011,2345.0,2344.2,14.42204387]
[1770056544698,0.0011,2345.0,2344.3,0.01280628]
[1770056544873,0.0011,2345.5,2344.3,12.55645132]
[1770056545079,0.0011,2345.7,2344.3,12.55645132]
[1770056545080,0.0011,2345.7,2344.9,0.01280628]
[1770056545279,0.0011,2345.7,2344.8,13.43764504]
[1770056545604,1.06688397,2345.7,2344.9,1.3437645]
[1770056545777,0.0011,2345.7,2344.8,0.894]
[1770056546374,0.0011,2345.7,2344.9,1.06614354]
[1770056547103,0.0011,2345.7,2344.9,13.60978858]
[1770056547697,0.0011,2345.9,2344.9,13.60978858]
[1770056547872,1.06658786,2346.4,2345.6,12.54364504]
[1770056547873,0.0011,2346.4,2345.6,12.54364504]
[1770056548071,0.0011,2346.6,2345.7,2.14964513]
[1770056548292,0.0011,2346.6,2345.8,1.0657345]
[1770056548721,0.01280628,2345.6,2344.4,12.54364504]
[1770056548872,12.02690258,2346.2,2344.9,1.06614354]
[1770056549072,12.01918382,2346.0,2344.9,1.0661105]
[1770056549675,1.20319901,2346.1,2344.9,13.60975554]
[1770056549872,12.01918382,2346.4,2344.9,13.60975554]
[1770056550220,12.01918382,2346.4,2344.9,1.0661105]
[1770056550703,1.06650353,2346.6,2345.3,12.54364504]
[1770056551008,1.06650353,2346.6,2345.4,0.894]
[1770056551391,13.08568735,2346.6,2345.2,0.894]
[1770056551587,12.01918382,2346.4,2345.2,0.894]
[1770056551791,1.73481165,2346.5,2345.2,0.894]
[1770056551985,13.08568735,2346.6,2345.2,0.894]
[1770056552308,13.09849363,2346.6,2344.7,4.26493777]
[1770056552610,13.08473662,2346.2,2344.9,1.06614354]
[1770056553126,12.01918382,2345.9,2344.7,1.06622257]
[1770056553297,12.01918382,2345.7,2344.8,1.06617443]
[1770056553818,12.01918382,2345.7,2344.7,1.06623248]
[1770056554024,12.01918382,2345.7,2344.5,1.06629008]
[1770056554191,12.01918382,2345.7,2344.6,1.06626049]
[1770056554388,12.01918382,2345.7,2344.5,1.0662894]
[1770056554594,12.01918382,2345.5,2344.5,1.0662894]
[1770056555130,13.08510008,2345.4,2344.4,4.26542815]
[1770056556727,13.08510008,2345.4,2344.1,0.0008024]
[1770056557130,0.01280628,2344.5,2344.1,0.0008024]
[1770056557328,12.0319901,2345.1,2343.4,4.26774295]
[1770056557329,0.01280628,2344.2,2343.4,1.06761017]
[1770056557553,0.01280628,2344.7,2343.6,1.06673493]
[1770056557754,0.01280628,2344.1,2343.6,1.06673493]
[1770056559324,0.01280628,2344.7,2343.4,12.54444824]
[1770056559640,0.00640314,2343.8,2343.4,0.0008032]
[1770056559841,0.01280628,2343.8,2343.4,0.53426465]
[1770056560044,0.01280628,2343.5,2343.4,0.0008032]
[1770056560644,0.00168436,2344.1,2343.4,0.0008032]
[1770056560849,0.01280628,2344.4,2343.4,0.0008032]
[1770056561463,1.0792072,2344.4,2343.4,0.0008032]
[1770056561669,0.01280628,2344.1,2343.4,0.0008032]
[1770056562030,1.07907666,2344.7,2343.4,0.0008032]
[1770056562330,0.01280628,2344.4,2343.4,0.0008032]
[1770056565255,1.71907818,2344.7,2343.4,0.0008032]
[1770056565458,14.04050614,2345.3,2343.4,12.54444824]
[1770056565634,12.91318382,2345.3,2343.4,12.54444824]
[1770056566229,1.32223828,2345.6,2343.9,12.54364504]
[1770056566536,0.0011,2345.2,2344.1,12.54364504]
[1770056566959,0.0011,2346.2,2344.2,12.54364504]
[1770056567160,0.0011,2346.2,2344.4,12.54364504]
[1770056567366,0.0011,2346.2,2344.6,12.54364504]
[1770056567545,0.01390628,2346.2,2344.6,12.54364504]
[1770056567746,12.0319901,2345.9,2344.3,2.277895]
[1770056567931,0.01280628,2345.6,2344.3,2.277895]
[1770056568128,0.01280628,2345.6,2344.4,2.376154]
[1770056568333,0.01280628,2345.6,2344.5,1.06632544]
[1770056568735,11.75383109,2345.6,2344.5,1.06632544]
[1770056570471,12.81965735,2345.6,2344.5,1.06632544]
[1770056570858,12.64296237,2345.4,2344.5,1.06632544]
[1770056571057,14.90865355,2345.3,2343.9,4.26638961]
[1770056571247,14.90865355,2345.3,2344.3,1.06639577]
[1770056571248,14.00993658,2345.3,2344.3,1.06639577]
[1770056572169,14.00993658,2345.3,2344.3,1.06640716]
[1770056572170,12.64296237,2345.1,2344.3,1.06640716]
[1770056572375,12.64296237,2345.1,2344.4,1.06635749]
[1770056572674,12.64296237,2346.0,2344.2,11.55965426]
[1770056572836,2.16330368,2345.9,2344.4,11.57246054]
[1770056573032,1.26449887,2345.9,2344.9,0.01280628]
[1770056573235,13.90746124,2345.9,2344.6,0.894]
[1770056573430,13.90746124,2345.9,2344.7,0.01280628]
[1770056573668,1.49731158,2345.8,2344.7,0.01280628]
[1770056573869,0.0011,2346.2,2344.7,0.01280628]
[1770056573870,0.0011,2346.2,2345.0,11.57246054]
[1770056574567,0.0011,2346.2,2345.1,1.06605262]
[1770056574934,0.0011,2346.2,2345.3,0.01280628]
[1770056575236,0.0011,2346.2,2345.1,1.06605262]
[1770056576141,0.0003,2346.2,2345.1,1.06605262]
[1770056576452,0.0003,2346.2,2345.2,0.53430694]
[1770056576657,0.0003,2346.2,2345.3,1.06596171]
[1770056577964,12.64326237,2346.2,2345.3,1.06596171]
[1770056578165,12.64326237,2346.2,2344.9,4.264542]
[1770056578465,12.74536237,2345.9,2344.5,4.26529713]
[1770056578762,12.74536237,2345.9,2344.7,0.001]
[1770056578763,13.7087423,2345.7,2344.7,0.001]
[1770056579069,0.89824868,2345.6,2344.7,0.001]
[1770056579261,0.89824868,2345.5,2344.7,0.001]
[1770056579569,13.7087423,2345.7,2344.7,0.001]
[1770056579745,2.93517956,2345.6,2344.7,0.001]
[1770056579940,0.89825855,2345.5,2344.7,0.001]
[1770056580340,0.89825855,2345.5,2344.5,0.001]
[1770056580341,13.54122092,2345.5,2344.5,0.001]
[1770056580537,12.64296237,2345.2,2344.0,1.06655079]
[1770056580736,14.60702555,2345.1,2343.7,1.06668942]
[1770056581038,1.06605262,2345.1,2343.9,0.01280628]
[1770056581234,1.59907893,2345.1,2343.9,0.01280628]
[1770056582042,0.53302631,2345.1,2343.9,0.01280628]
[1770056582363,0.53302631,2345.1,2343.9,11.57246054]
[1770056582564,1.06594128,2345.4,2344.2,11.57246054]
[1770056582870,1.06577993,2345.7,2344.5,11.57246054]
[1770056583033,0.89826681,2345.6,2344.3,1.06641641]
[1770056583366,12.64296237,2345.6,2344.3,1.06641641]
[1770056583565,0.89771288,2345.5,2344.3,1.06641641]
[1770056583746,1.35406753,2345.4,2344.4,0.53320821]
[1770056584380,12.64296237,2345.2,2344.1,1.06650533]
[1770056584676,1.06609808,2345.0,2343.6,4.26790395]
[1770056585456,1.12281185,2345.3,2343.8,11.57246054]
[1770056585675,1.96366846,2345.2,2343.8,11.57246054]
[1770056585874,0.8976613,2345.1,2343.8,11.57246054]
[1770056586083,2.41999035,2345.4,2344.1,0.01280628]
[1770056586387,1.35406753,2345.4,2344.1,0.01280628]
[1770056586683,1.35406753,2345.4,2344.2,1.0664619]
[1770056587187,13.70883318,2345.6,2344.2,1.0664619]
[1770056587388,5.16121328,2345.5,2344.2,1.0664619]
[1770056587551,1.88700465,2345.4,2344.3,1.69047701]
[1770056589180,2.95293334,2345.4,2344.4,1.06637092]
[1770056589379,1.06592869,2345.4,2344.4,1.06637092]
[1770056589549,0.89820093,2345.3,2344.3,2.75686428]
[1770056589749,1.06592869,2345.4,2344.3,1.06638727]
[1770056589950,0.89815611,2345.3,2344.3,1.06638727]
[1770056590150,1.06592869,2345.4,2344.3,1.06638727]
[1770056590366,0.89862666,2345.3,2344.3,1.06638727]
[1770056591175,1.96460879,2345.3,2344.2,4.26581972]
[1770056591357,0.89862666,2345.2,2344.3,0.85446438]
[1770056591778,0.73510857,2345.3,2344.3,0.85446438]
[1770056592082,3.46311227,2345.8,2344.4,11.55965426]
[1770056592277,0.0011,2345.2,2344.3,0.85446438]
[1770056592483,0.0011,2345.2,2344.3,1.74846438]
[1770056592684,0.0011,2345.2,2344.4,0.60142841]
[1770056593182,0.0011,2345.2,2344.4,16.43919072]
[1770056593483,0.0011,2345.2,2344.5,1.06632544]
[1770056593685,0.0011,2345.2,2344.5,12.63878598]
[1770056594182,2.18958413,2346.0,2344.7,0.01280628]
[1770056594382,12.64296237,2345.8,2344.5,1.06632544]
[1770056594552,13.54310001,2345.7,2344.5,1.06632544]
[1770056594754,0.90013764,2345.6,2344.5,1.06632544]
[1770056595049,0.90013764,2345.5,2344.5,1.06632544]
[1770056595253,2.18868666,2345.5,2344.4,4.26530177]
[1770056595470,1.35831425,2345.4,2344.5,0.94246035]
[1770056595676,0.45817661,2345.4,2344.5,0.94246035]
[1770056596084,0.90069191,2345.3,2344.5,0.94246035]
[1770056596273,2.18866122,2345.6,2344.5,0.94246035]
[1770056596474,0.90066736,2345.5,2344.5,0.94246035]
[1770056596677,0.90066736,2345.4,2344.5,0.94246035]
[1770056596878,2.18866122,2345.6,2344.5,0.94246035]
[1770056597078,2.81009276,2345.5,2344.6,0.52077621]
[1770056597388,0.90061168,2345.4,2344.6,0.52077621]
[1770056597884,0.90061168,2345.4,2344.7,1.06623448]
[1770056598286,1.12281185,2345.7,2344.7,1.06623448]
[1770056598486,0.90097352,2345.6,2344.7,1.06623448]
[1770056598690,1.06576324,2345.8,2344.8,0.58520034]
[1770056598879,0.90095748,2345.7,2344.8,0.58520034]
[1770056599081,1.06576324,2345.8,2344.8,0.58520034]
[1770056599277,0.90091722,2345.7,2344.8,0.58520034]
[1770056599457,1.06576324,2345.8,2344.8,0.58520034]
[1770056599790,0.90091742,2345.7,2344.8,0.58520034]
[1770056599987,2.18958173,2346.0,2344.9,1.06614354]
[1770056600152,0.90095938,2345.9,2344.9,1.06614354]
[1770056600358,0.90095938,2345.8,2344.9,1.06614354]
[1770056600560,1.06676988,2346.0,2344.9,1.06614354]
[1770056600784,1.54609017,2345.9,2345.0,0.59287243]
[1770056600989,0.9008852,2345.8,2345.0,0.59287243]
[1770056602196,0.9008852,2345.8,2345.1,1.06605262]
[1770056602971,0.0011,2346.0,2345.2,11.49750895]
[1770056603188,0.0011,2346.0,2345.3,1.34575616]
[1770056604067,0.0003,2346.2,2345.3,12.85607139]
[1770056604280,0.0003,2346.2,2345.6,1.07863165]
[1770056604801,0.0003,2346.2,2345.6,12.5761406]
[1770056604969,0.0003,2346.3,2345.6,1.06582537]
[1770056605169,0.0003,2346.3,2345.7,0.53291269]
[1770056605493,0.0003,2346.3,2345.8,0.894]
[1770056605694,0.0003,2346.3,2345.8,12.39150895]
[1770056606074,0.0011,2346.2,2345.8,12.39150895]
[1770056606270,0.0011,2346.2,2345.9,1.06568907]
[1770056606471,0.0011,2346.2,2346.0,1.77199543]
[1770056607969,0.0011,2346.4,2346.0,1.77199543]
[1770056608172,0.0011,2347.2,2346.3,0.01280628]
[1770056608407,0.0011,2347.2,2346.4,1.95946198]
[1770056609309,11.66271502,2347.2,2346.4,1.95946198]
[1770056609599,1.16635166,2347.1,2346.3,1.06547348]
[1770056610371,1.16635166,2347.1,2345.9,11.49750895]
[1770056610372,12.72680462,2347.0,2345.7,0.53291269]
[1770056610573,11.66161502,2347.0,2346.2,1.06553216]
[1770056612409,12.7268397,2347.0,2346.0,1.06564364]
[1770056612717,0.0011,2347.2,2346.2,11.51031523]
[1770056612873,0.0011,2347.6,2346.8,11.51031523]
[1770056613206,0.0011,2347.6,2346.9,12.39150895]
[1770056613571,0.0011,2347.9,2347.0,11.51031523]
[1770056614076,0.0011,2347.9,2347.0,11.49750895]
[1770056614406,0.0011,2347.9,2347.2,1.06509884]
[1770056618390,0.0011,2348.5,2347.2,12.57541407]
[1770056618624,1.05437588,2348.7,2347.2,12.57541407]
[1770056618821,12.72602202,2348.8,2347.2,12.57541407]
[1770056619026,12.72598917,2348.8,2347.2,12.57541407]
[1770056619215,13.02372394,2348.7,2347.3,1.68358094]
[1770056619420,13.02372394,2348.7,2347.2,1.06509884]
[1770056619624,13.02372394,2348.7,2347.2,12.56260779]
[1770056620728,1.06446393,2348.6,2347.2,12.56260779]
[1770056621126,12.72607895,2348.6,2347.2,1.06509884]
[1770056621431,11.66161502,2348.4,2347.0,1.06517263]
[1770056621601,11.66161502,2348.4,2347.1,1.06512286]
[1770056621930,11.66161502,2348.2,2346.8,0.893]
[1770056622107,11.66161502,2348.2,2346.8,1.95824823]
[1770056622297,11.66161502,2348.2,2347.0,1.0651895]
[1770056622492,11.66161502,2348.0,2347.0,1.0651895]
[1770056622722,12.72639631,2347.9,2346.9,1.06523499]
[1770056625428,11.66161502,2347.9,2346.9,1.06523499]
[1770056625626,2.24109755,2348.1,2346.9,1.06523499]
[1770056625935,1.06469605,2348.1,2347.0,0.62192346]
[1770056626223,4.25854248,2348.3,2347.0,0.62192346]
[1770056626224,1.06463268,2348.3,2347.0,0.62192346]
[1770056626638,12.7262477,2348.3,2347.0,0.62192346]
[1770056627410,12.7262477,2348.3,2347.1,1.06514422]
[1770056629509,11.66161502,2348.3,2347.1,1.06514422]
[1770056629705,6.09273339,2348.5,2347.2,13.2862583]
[1770056629706,1.83458872,2348.5,2347.2,13.2862583]
[1770056629911,11.40907663,2348.6,2347.2,13.2862583]
[1770056630137,3.31956067,2348.7,2347.2,13.2862583]
[1770056630437,1.95745175,2348.7,2347.2,13.2862583]
[1770056630649,0.893,2348.7,2347.2,13.2872583]
[1770056631018,0.0011,2348.1,2347.2,13.2872583]
[1770056631516,0.0011,2348.1,2347.3,1.06505346]
[1770056631721,0.0011,2348.1,2347.3,13.179338]
[1770056631921,0.0011,2348.1,2347.4,1.91890885]
[1770056632122,0.0011,2348.1,2347.5,0.893]
[1770056632512,0.0011,2348.3,2347.5,13.00728454]
[1770056632710,0.0011,2348.9,2347.7,12.12469082]
[1770056633536,0.0011,2348.9,2347.8,1.06482664]
[1770056633737,12.10099521,2348.9,2347.4,1.91890885]
[1770056633937,12.10099521,2348.9,2347.7,1.0648602]
[1770056634236,12.09989521,2348.7,2347.7,1.0648602]
[1770056634644,12.09989521,2348.5,2347.4,1.91890885]
[1770056634936,12.09989521,2348.5,2347.6,1.06491313]
[1770056635124,12.09989521,2348.3,2347.3,1.06504625]
[1770056635325,12.09989521,2348.3,2347.5,1.06496164]
[1770056635538,13.16440447,2348.5,2347.2,0.001]
[1770056635740,0.8991675,2348.4,2347.2,0.001]
[1770056635923,0.8991675,2348.3,2347.2,0.001]
[1770056636236,0.8991675,2348.3,2347.2,0.62305654]
[1770056636237,12.09989521,2348.3,2347.2,0.62305654]
[1770056636449,0.89921341,2348.2,2347.2,0.62305654]
[1770056636650,12.09989521,2348.3,2347.2,0.62305654]
[1770056636852,0.89921721,2348.2,2347.2,0.62305654]
[1770056637052,12.09989521,2348.3,2347.2,0.62305654]
[1770056637253,2.10964386,2348.2,2347.3,0.48834777]
[1770056637456,1.20998952,2348.2,2347.3,0.48834777]
[1770056637618,1.12281185,2348.8,2347.6,12.12709082]
[1770056637956,0.0011,2348.9,2347.7,13.00728454]
[1770056638259,0.0011,2348.9,2348.1,0.01280628]
[1770056639220,0.0011,2348.9,2347.7,13.00728454]
[1770056639425,0.0011,2348.9,2347.8,1.30200908]
[1770056639648,0.0011,2348.9,2347.8,1.06482664]
[1770056639848,0.0011,2348.9,2347.9,0.01280628]
[1770056640223,0.0011,2348.9,2347.8,1.06482664]
[1770056640428,0.0011,2348.9,2347.9,0.893]
[1770056640627,0.0011,2348.9,2348.0,0.01280628]
[1770056640833,0.0011,2348.9,2348.3,0.01280628]
[1770056641135,0.0011,2348.9,2348.1,12.11428454]
[1770056641335,0.0011,2349.3,2348.3,0.01280628]
[1770056641688,0.0011,2349.3,2348.6,0.01280628]
[1770056641855,0.0011,2349.3,2348.7,0.893]
[1770056642042,0.0008,2349.5,2348.9,0.01280628]
[1770056642551,1.06374602,2350.2,2348.8,0.01280628]
[1770056642746,1.43240433,2350.1,2348.8,1.31481536]
[1770056642946,0.90053403,2350.0,2349.1,0.01280628]
[1770056643147,1.06370189,2350.3,2349.1,0.01280628]
[1770056643353,0.89980675,2350.2,2348.8,1.31481536]
[1770056643680,1.06382978,2350.0,2348.9,1.07713426]
[1770056643970,1.06381525,2350.1,2349.0,0.66364553]
[1770056644375,0.85381525,2350.1,2349.0,0.66364553]
[1770056644967,0.0011,2349.3,2349.0,0.66364553]
[1770056645791,0.0011,2349.3,2349.1,1.06423736]
[1770056647090,16.35488359,2350.2,2349.1,1.06423736]
[1770056647091,12.95266118,2350.2,2349.1,1.06423736]
[1770056647389,1.72085772,2350.1,2349.1,2.08971116]
[1770056648397,1.06382978,2350.0,2349.1,2.08971116]
[1770056648565,1.06382978,2350.0,2349.1,1.06423403]
[1770056649290,2.78466857,2350.1,2349.1,1.06423403]
[1770056649893,14.88456378,2350.1,2349.0,0.66364553]
[1770056650070,12.09989521,2349.9,2348.6,4.25770963]
[1770056650384,12.09989521,2349.9,2348.2,12.11428454]
[1770056650385,12.09989521,2349.7,2348.5,1.06450926]
[1770056650580,13.41627676,2349.6,2348.5,2.11314822]
[1770056650774,13.41627676,2349.6,2348.4,1.06454984]
[1770056652195,2.38042738,2349.6,2348.4,0.01280628]
[1770056652361,1.06404583,2349.6,2348.4,0.01280628]
[1770056652562,13.16394104,2349.6,2348.3,4.25834448]
[1770056652867,12.09989521,2349.6,2348.4,0.01280628]
[1770056653079,13.16372499,2350.0,2348.4,0.01280628]
[1770056653312,12.99774326,2349.9,2348.4,0.01280628]
[1770056653494,1.4061573,2349.8,2348.4,13.96139434]
[1770056653884,1.4061573,2349.8,2348.7,0.01280628]
[1770056654098,1.4061573,2349.8,2348.4,13.96139434]
[1770056654305,1.06396561,2349.7,2348.5,1.06450926]
[1770056654603,1.06396561,2349.7,2348.5,1.95750926]
[1770056654604,13.16386082,2349.7,2348.5,1.95750926]
[1770056654789,12.09989521,2349.5,2348.4,1.06451923]
[1770056655503,12.09989521,2349.5,2348.2,1.95760748]
[1770056655686,12.09989521,2349.3,2348.3,1.06458081]
[1770056655885,12.09989521,2349.3,2348.2,1.95761005]
[1770056656292,1.06419206,2349.2,2348.3,1.06459652]
[1770056656477,0.53209603,2349.1,2348.3,1.68621384]
[1770056656675,0.53209603,2349.1,2348.6,0.001]
[1770056658393,0.53209603,2349.1,2347.9,1.06477435]
[1770056658394,14.06490311,2349.0,2347.9,1.06477435]
[1770056658575,12.09989521,2348.8,2347.4,0.001]
[1770056658780,12.09989521,2348.6,2347.4,0.001]
[1770056658999,14.30068248,2348.5,2347.6,1.06488132]
[1770056659320,12.99289521,2348.8,2347.8,1.06479479]
[1770056659705,0.90114493,2348.7,2347.9,1.06478067]
[1770056660007,12.99289521,2348.8,2348.0,1.06470312]
[1770056660207,12.99289521,2348.8,2347.9,1.06475911]
[1770056660504,12.99289521,2348.8,2347.6,1.06488673]
[1770056660505,12.98542915,2348.7,2347.6,1.06488673]
[1770056660711,12.98542915,2348.7,2347.7,1.0648664]
[1770056660712,13.7346209,2348.6,2347.7,1.0648664]
[1770056660906,12.83335492,2348.6,2347.6,1.59744777]
[1770056661209,0.01280628,2348.3,2347.6,1.59744777]
[1770056661408,0.01280628,2348.3,2347.6,1.59747738]
[1770056661585,0.01280628,2348.3,2347.6,0.53256421]
[1770056661913,0.01280628,2348.3,2347.5,1.06495556]
[1770056663208,1.06453262,2348.5,2347.4,4.26103034]
[1770056663809,13.89785516,2348.6,2347.4,4.26103034]
[1770056664202,0.01280628,2348.4,2347.4,4.26103034]
[1770056664407,0.01280628,2348.1,2347.5,0.62190384]
[1770056665121,0.01280628,2348.1,2347.6,1.06491736]
[1770056665511,0.01280628,2348.1,2347.5,1.6868411]
[1770056667831,2.87807742,2348.6,2347.5,1.6868411]
[1770056668002,0.01280628,2348.5,2347.5,1.6868411]
[1770056668334,0.01280628,2348.2,2347.5,1.6868411]
[1770056670236,1.07747124,2348.2,2347.5,0.62190384]
[1770056670436,1.07747124,2348.2,2347.4,1.06599399]
[1770056670643,12.52549263,2348.8,2347.5,1.06496205]
[1770056670954,0.01280628,2348.5,2347.7,0.001]
[1770056671107,0.01390628,2348.5,2347.7,0.001]
[1770056671787,0.01280628,2348.2,2347.7,0.001]
[1770056672111,1.07747671,2348.2,2347.7,0.001]
[1770056672433,0.53358939,2348.2,2347.7,0.001]
[1770056672611,12.09818038,2348.5,2347.7,0.001]
[1770056672808,12.0981636,2348.5,2347.7,0.001]
[1770056673447,12.0981636,2348.5,2347.8,11.85979671]
[1770056673448,0.0011,2348.5,2347.8,11.85979671]
[1770056674234,0.0011,2348.5,2347.9,1.06478129]
[1770056674444,0.0011,2348.5,2348.0,1.71837032]
[1770056674939,0.0011,2348.5,2347.8,1.95779734]
[1770056675550,0.0011,2348.5,2347.8,12.92459405]
[1770056676942,0.0011,2348.5,2347.8,1.95779734]
[1770056677732,0.0011,2348.5,2347.8,1.95699734]
[1770056678850,0.0011,2348.5,2347.8,12.92379405]
[1770056679138,0.0011,2348.7,2347.9,12.68521244]
[1770056679524,10.8083788,2349.5,2348.0,10.96679671]
[1770056679744,0.90424821,2349.4,2348.0,10.96679671]
[1770056680038,0.90424821,2349.3,2348.0,10.96679671]
[1770056680244,0.90424821,2349.2,2348.0,10.96679671]
[1770056680563,3.38832939,2349.6,2348.3,10.96679671]
[1770056680745,0.90443561,2349.5,2348.3,10.96679671]
[1770056681040,0.90443561,2349.4,2348.3,10.96679671]
[1770056681244,1.88258132,2349.6,2348.3,10.96679671]
[1770056681549,0.90441266,2349.5,2348.3,10.96679671]
[1770056681742,1.88258132,2349.6,2348.4,12.06347638]
[1770056682048,0.90496047,2349.5,2348.5,0.893]
[1770056682248,0.893,2349.7,2348.5,0.893]
[1770056682427,0.90480935,2349.6,2348.5,0.893]
[1770056682613,0.90480935,2349.5,2348.5,0.893]
[1770056682819,0.90479301,2349.4,2348.5,0.893]
[1770056683118,11.01974456,2349.5,2348.5,0.893]
[1770056683318,0.90491629,2349.4,2348.5,0.893]
[1770056683521,12.12299964,2349.5,2348.5,0.893]
[1770056683720,0.90488736,2349.4,2348.5,0.893]
[1770056683925,12.12299964,2349.5,2348.5,0.893]
[1770056684241,11.92464064,2349.4,2348.4,1.09667967]
[1770056684431,11.01974456,2349.2,2348.1,0.893]
[1770056684745,11.01974456,2349.5,2348.1,11.85979671]
[1770056684918,0.0011,2349.3,2348.1,11.85979671]
[1770056685715,11.02084456,2349.3,2348.1,11.85979671]
[1770056685916,0.90470145,2349.2,2348.1,0.893]
[1770056686218,1.1925546,2349.1,2348.1,0.893]
[1770056686836,11.01974456,2348.9,2348.1,0.893]
[1770056687032,0.90502093,2348.8,2348.1,0.893]
[1770056687233,11.01974456,2348.9,2348.1,0.893]
[1770056687439,0.90507128,2348.8,2348.1,0.893]
[1770056687753,1.19248158,2348.8,2348.1,0.893]
[1770056688353,1.1925546,2349.1,2348.1,0.893]
[1770056688540,0.90506581,2349.0,2348.1,0.893]
[1770056688746,0.90506581,2348.9,2348.1,0.893]
[1770056688926,1.1925546,2349.1,2348.1,0.893]
[1770056689129,0.90478849,2349.0,2348.1,0.893]
[1770056689355,0.90478849,2348.9,2348.1,0.893]
[1770056689656,12.76187796,2349.1,2348.1,0.893]
[1770056689860,2.18114705,2349.0,2348.1,0.893]
[1770056690061,0.90495925,2348.9,2348.1,0.893]
[1770056690252,1.2761878,2349.0,2348.1,0.893]
[1770056690593,0.90490765,2348.9,2348.1,0.893]
[1770056690744,1.2761878,2349.0,2348.1,0.893]
[1770056690945,0.0011,2349.3,2348.3,11.06418142]
[1770056691258,0.0011,2349.3,2348.2,0.01280628]
[1770056691481,0.0011,2349.3,2348.1,0.893]
[1770056691482,11.66088489,2349.3,2348.1,0.893]
[1770056692359,11.66088489,2349.3,2348.1,0.75297183]
[1770056692535,11.66088489,2349.3,2348.0,0.001]
[1770056692742,11.65978489,2349.1,2348.0,0.001]
[1770056695758,11.65978489,2348.9,2348.0,0.001]
[1770056695939,11.65978489,2348.7,2347.8,0.001]
[1770056697960,13.15272668,2348.7,2347.7,0.001]
[1770056698466,11.65978489,2348.7,2347.7,0.001]
[1770056698764,12.97505756,2348.6,2347.7,0.001]
[1770056699268,12.97505756,2348.6,2348.0,0.001]
[1770056699968,1.31527267,2348.6,2348.0,0.001]
[1770056700168,13.15382668,2348.9,2348.0,0.001]
[1770056700669,1.49404179,2348.9,2348.0,0.001]
[1770056700873,0.0011,2348.9,2348.0,0.001]
[1770056701241,0.0011,2348.9,2348.0,11.06518142]
[1770056701445,11.66088489,2348.9,2348.1,1.10651814]
[1770056701645,0.0011,2348.9,2348.0,0.001]
[1770056703180,0.90519006,2348.8,2348.0,0.001]
[1770056703482,0.0011,2348.9,2348.0,0.001]
[1770056703772,0.90535968,2348.8,2348.0,0.001]
[1770056703972,0.0011,2348.9,2348.0,0.001]
[1770056704179,0.90535949,2348.8,2348.0,0.001]
[1770056704472,0.90536108,2348.7,2348.0,0.001]
[1770056704776,12.79237286,2348.9,2348.0,0.001]
[1770056704972,2.18456548,2348.8,2348.0,0.001]
[1770056705165,0.90532819,2348.7,2348.0,0.001]
[1770056705354,1.13258797,2348.9,2348.0,0.001]
[1770056705550,0.90498478,2348.8,2348.0,0.001]
[1770056705767,0.90498478,2348.7,2348.0,0.001]
[1770056705942,0.0011,2348.9,2348.0,0.001]
[1770056706753,0.0011,2348.9,2348.0,11.06518142]
[1770056706953,0.0011,2348.9,2348.1,12.17198019]
[1770056707569,0.0011,2348.9,2348.2,1.06464526]
[1770056709397,0.0011,2349.5,2348.3,11.06418142]
[1770056709695,0.0011,2349.5,2348.5,11.06418142]
[1770056710000,0.90616395,2349.4,2348.6,1.3021736]
[1770056710167,12.56594884,2349.3,2348.3,1.06459378]
[1770056710367,0.90616395,2349.2,2348.3,1.06459378]
[1770056710596,0.90616395,2349.1,2348.3,1.06459378]
[1770056710894,0.90616395,2349.0,2348.3,1.06459378]
[1770056711088,12.79127286,2349.3,2348.3,2.13351574]
[1770056711299,0.90552149,2349.2,2348.3,2.13351574]
[1770056711467,0.90552149,2349.1,2348.3,2.13351574]
[1770056711670,0.90552149,2349.0,2348.3,2.13351574]
[1770056711997,1.0642007,2349.2,2348.3,2.13351574]
[1770056712196,2.29177262,2349.1,2348.3,2.13351574]
[1770056712393,0.90512526,2349.0,2348.3,2.13351574]
[1770056713514,0.90512526,2349.0,2348.3,13.19769716]
[1770056713789,0.0011,2349.1,2348.3,13.19769716]
[1770056715798,0.0011,2349.1,2348.4,11.95718142]
[1770056715988,0.0011,2349.1,2348.5,1.40906972]
[1770056717489,0.0011,2349.3,2348.5,12.47325114]
[1770056717688,0.0011,2349.5,2348.8,11.06418142]
[1770056718596,0.0011,2350.0,2348.8,11.06418142]
[1770056718900,0.90572186,2349.9,2348.8,11.06418142]
[1770056719097,0.90572186,2349.8,2348.9,1.21286]
[1770056719398,0.90516354,2349.7,2348.9,1.21286]
[1770056719719,0.90516354,2349.7,2348.3,1.06892196]
[1770056719720,12.79127286,2349.5,2348.3,1.06892196]
[1770056719999,12.79127286,2349.3,2348.2,1.06562701]
[1770056720170,12.79127286,2349.3,2348.4,1.06455395]